fUSD/lending_fUSD_20240121
["ID","MTS","AMOUNT","RATE_DAILY","PERIOD"]
[312428920,1705870290571,-159.11494115,0.00043821,14]
[312428921,1705870290580,-220.94615431,0.00043821,14]
[312428922,1705870290590,-220.94,0.00043821,14]
[312428923,1705870290600,-160.68811223,0.00043821,14]
[312428924,1705870290609,-174.79794127,0.00043821,14]
[312428925,1705870290619,-174.79,0.00043821,14]
[312428926,1705870290629,-155.37594779,0.00043821,14]
[312428927,1705870290640,-150.0,0.00043834,4]
[312428928,1705870290649,-2758.95733518,0.00043835,2]
[312428929,1705870290659,-500.0,0.00043835,31]
[312428930,1705870290669,-500.0,0.00043835,31]
[312428931,1705870290678,-562.65,0.00043835,31]
[312428932,1705870290687,-500.0,0.00043835,31]
[312428933,1705870290697,-496.26718772,0.00043835,31]
[312428934,1705870290707,-500.0,0.00043835,31]
[312428935,1705870290716,-775.42,0.00043835,31]
[312428936,1705870290726,-500.0,0.00043835,31]
[312428937,1705870290735,-500.0,0.00043835,31]
[312428938,1705870290745,-614.4,0.00043835,2]
[312428939,1705870290755,-500.0,0.00043835,31]
[312428940,1705870290764,-632.65,0.00043835,31]
[312428941,1705870290773,-500.0,0.00043835,31]
[312428942,1705870290783,-500.0,0.00043835,31]
[312428943,1705870290792,-500.0,0.00043835,31]
[312428944,1705870290802,-500.0,0.00043835,31]
[312428945,1705870290811,-500.0,0.00043835,31]
[312428946,1705870290820,-500.0,0.00043835,31]
[312428947,1705870290829,-500.0,0.00043835,20]
[312428948,1705870290838,-500.0,0.00043835,31]
[312428949,1705870290848,-500.0,0.00043835,31]
[312428950,1705870290857,-500.0,0.00043835,31]
[312428951,1705870290866,-500.0,0.00043835,31]
[312428952,1705870290876,-500.0,0.00043835,31]
[312428953,1705870290885,-500.0,0.00043835,31]
[312428954,1705870290895,-500.0,0.00043835,31]
[312428955,1705870290904,-500.0,0.00043835,31]
[312428956,1705870290916,-500.0,0.00043835,31]
[312428957,1705870290925,-500.0,0.00043835,31]
[312428958,1705870290934,-500.0,0.00043835,31]
[312428959,1705870290943,-500.0,0.00043835,31]
[312428960,1705870290953,-500.0,0.00043835,31]
[312428961,1705870290962,-500.0,0.00043835,31]
[312428962,1705870290972,-735.1,0.00043835,31]
[312428963,1705870290984,-500.0,0.00043835,31]
[312428964,1705870290993,-770.18,0.00043835,31]
[312428965,1705870291002,-500.0,0.00043835,31]
[312428966,1705870291012,-500.0,0.00043835,31]
[312428967,1705870291022,-500.0,0.00043835,31]
[312428968,1705870291031,-403.64195637,0.00043835,31]
[312428969,1705870291606,-96.35804363,0.00043835,31]
[312428970,1705870291617,-500.0,0.00043835,31]
[312428971,1705870291628,-500.0,0.00043835,31]
[312428972,1705870291638,-500.0,0.00043835,31]
[312428973,1705870291649,-500.0,0.00043835,31]
[312428974,1705870291661,-552.18,0.00043835,31]
[312428975,1705870291671,-518.69,0.00043835,31]
[312428976,1705870291682,-500.0,0.00043835,31]
[312428977,1705870291692,-500.0,0.00043835,31]
[312428978,1705870291701,-500.0,0.00043835,31]
[312428979,1705870291711,-500.0,0.00043835,31]
[312428980,1705870291721,-500.0,0.00043835,31]
[312428981,1705870291731,-500.0,0.00043835,31]
[312428982,1705870291741,-500.0,0.00043835,31]
[312428983,1705870291752,-518.01547036,0.00043835,31]
[312428984,1705870291815,-1090.87505918,0.00042739,31]
[312428985,1705870291832,-55.58494082,0.00042739,31]
[312428986,1705870291842,-145.59452964,0.00043835,31]
[312428987,1705870291852,-180.13935251,0.00043835,31]
[312428988,1705870291877,-383.55064749,0.00043835,31]
[312428989,1705870291888,-500.0,0.00043835,31]
[312428990,1705870291898,-253.22135265,0.00043835,31]
[312428991,1705870291911,-357.52784035,0.00043835,31]
[312428992,1705870291922,-500.0,0.00043835,31]
[312428993,1705870291932,-500.0,0.00043835,31]
[312428994,1705870291943,-536.72506807,0.00043835,31]
[312428995,1705870291953,-500.0,0.00043835,31]
[312428996,1705870291963,-500.0,0.00043835,31]
[312428997,1705870291978,-500.0,0.00043835,31]
[312428998,1705870291989,-500.0,0.00043835,31]
[312428999,1705870291999,-500.0,0.00043835,31]
[312429000,1705870292009,-500.0,0.00043835,31]
[312429001,1705870292019,-500.0,0.00043835,31]
[312429002,1705870292029,-732.27,0.00043835,31]
[312429003,1705870292040,-501.91,0.00043835,31]
[312429004,1705870292050,-1000.0,0.00043835,31]
[312429005,1705870292061,-500.0,0.00043835,31]
[312429006,1705870292072,-500.0,0.00043835,31]
[312429007,1705870292081,-500.0,0.00043835,31]
[312429008,1705870292092,-500.0,0.00043835,31]
[312429009,1705870292102,-500.0,0.00043835,31]
[312429010,1705870292112,-500.0,0.00043835,31]
[312429011,1705870292122,-500.0,0.00043835,31]
[312429012,1705870292132,-535.28,0.00043835,31]
[312429013,1705870292143,-500.0,0.00043835,31]
[312429014,1705870292154,-419.00003737,0.00043835,31]
[312429015,1705870292169,-80.99996263,0.00043835,31]
[312429016,1705870292179,-1269.91,0.00043835,31]
[312429017,1705870292190,-798.87,0.00043835,31]
[312429018,1705870292200,-500.0,0.00043835,31]
[312429019,1705870292210,-743.95,0.00043835,31]
[312429020,1705870292220,-179.10293171,0.00043835,31]
[312429021,1705870292691,-500.0,0.00041095,31]
[312429022,1705870292703,-500.0,0.00041095,31]
[312429023,1705870292714,-500.0,0.00041095,31]
[312429024,1705870292724,-500.0,0.00041095,31]
[312429025,1705870292735,-249.23990008,0.00041643,31]
[312429026,1705870292749,-9636.41009992,0.00041643,31]
[312429027,1705870292761,-500.0,0.00041643,31]
[312429028,1705870292772,-426.16,0.00041643,31]
[312429029,1705870292783,-9885.65,0.00042191,31]
[312429030,1705870292794,-500.0,0.00042191,31]
[312429031,1705870292805,-9885.65,0.00042739,31]
[312429032,1705870292815,-511.03216787,0.00042739,31]
[312429033,1705870292826,-1146.46,0.00043287,31]
[312429034,1705870292837,-9885.65,0.00043287,31]
[312429035,1705870292847,-320.89706829,0.00043835,31]
[312429036,1705870292858,-647.63,0.00043835,31]
[312429037,1705870292869,-719.43,0.00043835,31]
[312429038,1705870292880,-500.0,0.00043835,31]
[312429039,1705870292890,-500.0,0.00043835,31]
[312429040,1705870292901,-1010.23,0.00043835,31]
[312429041,1705870292911,-45.54608939,0.00043835,31]
[312429042,1705870292993,-454.45391061,0.00043835,31]
[312429043,1705870293004,-500.0,0.00043835,31]
[312429044,1705870293016,-628.95,0.00043835,31]
[312429045,1705870293027,-1102.59,0.00043835,31]
[312429046,1705870293039,-500.0,0.00043835,31]
[312429047,1705870293051,-500.0,0.00043835,31]
[312429048,1705870293066,-500.0,0.00043835,31]
[312429049,1705870293077,-53.59740159,0.00043835,31]
[312429050,1705870293795,-175.58250697,0.000298,2]
[312429051,1705870293806,-334.63068597,0.00037012,4]
[312429052,1705870293817,-1070.33293165,0.00037898,2]
[312429053,1705870293834,-519.56536542,0.00037898,2]
[312429054,1705870313103,13347.99337407,6.94e-05,2]
[312429055,1705870313125,524.45151195,6.94e-05,2]
[312429056,1705870397731,1968.03297659,0.00019545,2]
[312429057,1705870408911,155.0,0.00019545,2]
[312429058,1705870410028,387.20230097,0.00019545,2]
[312429059,1705870426252,1628.46378271,0.000181,2]
[312429060,1705870444179,1000.0,0.000135,2]
[312429061,1705870486980,1916.26672281,0.00019545,2]
[312429062,1705870518468,156.77355716,0.000135,2]
[312429063,1705870525613,504.21645281,0.00019545,2]
[312429064,1705870536452,156.55860509,0.000135,2]
[312429065,1705870822775,257.00543311,0.000135,2]
[312429066,1705870826323,259.99699889,0.000135,2]
[312429067,1705870826381,857.44189402,0.000135,2]
[312429068,1705870831409,198.42529869,0.000135,2]
[312429069,1705870842116,259.99699889,0.000135,2]
[312429070,1705870846493,698.1723746,0.000135,2]
[312429071,1705870860116,259.99699889,0.000135,2]
[312429072,1705870878203,259.99699889,0.000135,2]
[312429073,1705870898122,176.43558458,0.000135,2]
[312429074,1705870936138,200.1906815,0.00013432,2]
[312429075,1705871122295,271.03,0.00019184,2]
[312429076,1705871200922,175.4,0.00016864,2]
[312429083,1705871390455,327.39803956,0.00019545,2]
[312429098,1705871432091,-480.34451528,0.00019546,2]
[312429100,1705871432102,-4.17548472,0.00019546,2]
[312429101,1705871432112,-556.68758297,0.00020027,2]
[312429102,1705871432121,-150.0,0.00020788,2]
[312429103,1705871432130,-220.04320149,0.00020916,2]
[312429104,1705871432139,-157.33,0.00020993,2]
[312429105,1705871432148,-154.74,0.00021044,2]
[312429106,1705871432157,-154.74,0.00021066,2]
[312429107,1705871432166,-154.74,0.00021089,2]
[312429108,1705871432176,-374.33630762,0.00021089,2]
[312429109,1705871432188,-425.88369238,0.00021089,2]
[312429110,1705871432197,-154.74,0.00021111,2]
[312429111,1705871432206,-19.37630762,0.00021113,2]
[312429112,1705871432218,-220.62369238,0.00021113,2]
[312429113,1705871432227,-152.4027003,0.00021121,2]
[312429114,1705871432237,-79.63047359,0.00021133,2]
[312429115,1705871432256,-75.10952641,0.00021133,2]
[312429116,1705871432266,-154.74,0.00021155,2]
[312429117,1705871432276,-154.74,0.00021177,2]
[312429118,1705871432285,-154.74,0.00021199,2]
[312429119,1705871432294,-154.74,0.00021222,2]
[312429120,1705871432304,-154.74,0.00021244,2]
[312429121,1705871432313,-156.6,0.0002126,2]
[312429122,1705871432322,-154.74,0.00021266,2]
[312429123,1705871432332,-154.74,0.00021288,2]
[312429124,1705871432344,-174.71,0.00021301,2]
[312429125,1705871432353,-154.74,0.0002131,2]
[312429126,1705871432363,-154.74,0.00021332,2]
[312429127,1705871432373,-154.74,0.00021354,2]
[312429128,1705871432382,-154.74,0.00021377,2]
[312429129,1705871432392,-150.0,0.00021377,2]
[312429130,1705871432401,-154.74,0.00021399,2]
[312429131,1705871432411,-154.74,0.00021421,2]
[312429132,1705871432420,-154.74,0.00021443,2]
[312429133,1705871432429,-271.03,0.00021448,2]
[312429135,1705871432438,-154.74,0.00021465,2]
[312429138,1705871432447,-157.37,0.0002179,2]
[312429141,1705871432456,-157.37,0.00021813,2]
[312429143,1705871432466,-499.99,0.00021831,2]
[312429145,1705871432475,-257.08,0.00021831,2]
[312429147,1705871432484,-157.37,0.00021836,2]
[312429149,1705871432493,-157.37,0.00021859,2]
[312429151,1705871432502,-157.37,0.00021882,2]
[312429153,1705871432511,-1810.76268013,0.00021901,2]
[312429155,1705871432523,-640.14719797,0.00021901,2]
[312429157,1705871432534,-551.95774494,0.00021901,2]
[312429159,1705871432555,-1210.24940779,0.00021901,2]
[312429160,1705871432574,-1881.09910861,0.00021901,2]
[312429161,1705871432589,-981.14561195,0.00021901,2]
[312429162,1705871432601,-309.36977282,0.00021901,2]
[312429163,1705871432612,-35643.23090169,0.00021901,2]
[312429164,1705871432621,-164.07049149,0.00021902,2]
[312429165,1705871432631,-318.90091177,0.00021902,2]
[312429166,1705871432640,-1299.13,0.00021905,2]
[312429167,1705871432649,-157.37,0.00021905,2]
[312429168,1705871432659,-250.0,0.00021918,2]
[312429169,1705871432668,-613.79,0.00021918,2]
[312429170,1705871432677,-157.37,0.00021928,2]
[312429171,1705871432686,-157.37,0.00021951,2]
[312429172,1705871432696,-257.08,0.00021968,2]
[312429173,1705871432705,-157.37,0.00021974,2]
[312429174,1705871432714,-157.37,0.00021997,2]
[312429175,1705871432723,-152.4027003,0.0002201,2]
[312429176,1705871432732,-157.37,0.0002202,2]
[312429177,1705871432741,-157.37,0.00022043,2]
[312429178,1705871432751,-157.37,0.00022066,2]
[312429179,1705871432760,-3176.81093122,0.00022079,2]
[312429180,1705871432769,-157.37,0.00022088,2]
[312429181,1705871432778,-760.0,0.00022089,2]
[312429182,1705871432787,-262.67494934,0.00022105,2]
[312429183,1705871432796,-157.37,0.00022111,2]
[312429184,1705871432805,-157.37,0.00022134,2]
[312429185,1705871432815,-157.37,0.00022157,2]
[312429186,1705871432824,-157.37,0.0002218,2]
[312429187,1705871432833,-157.37,0.00022203,2]
[312429188,1705871432843,-157.37,0.00022226,2]
[312429189,1705871432853,-439.64576122,0.00022501,2]
[312429190,1705871432862,-155.21884418,0.00022502,2]
[312429191,1705871432872,-327.10012946,0.00022502,2]
[312429192,1705871432882,-203.09146154,0.00022503,2]
[312429193,1705871432892,-1000.0,0.00022504,2]
[312429194,1705871432902,-113431.40791398,0.00022504,2]
[312429195,1705871432914,-292.97642527,0.00022504,2]
[312429196,1705871432926,-970.5346668,0.00022504,2]
[312429197,1705871432938,-1152.42565523,0.00022504,2]
[312429198,1705871432950,-1613.37908451,0.00022504,2]
[312429199,1705871433011,-13165.77123581,0.00022504,2]
[312429200,1705871433022,-727.69660047,0.00022504,2]
[312429203,1705871438290,-3279.9314489,0.00022504,2]
[312429204,1705871438302,-467.91216912,0.00022504,2]
[312429205,1705871438318,-12704.0653587,0.00022504,2]
[312429206,1705871438329,-174165.88554121,0.00022504,2]
[312429207,1705871438342,-2500.0,0.00022504,2]
[312429208,1705871438352,-295.06702523,0.00022602,2]
[312429209,1705871438362,-7768.5054,0.00022632,2]
[312429210,1705871438372,-4622.0556,0.00022632,2]
[312429211,1705871438382,-1000.0,0.00022632,2]
[312429212,1705871438391,-835.5278,0.00022632,2]
[312429213,1705871438402,-443.2957,0.00022632,2]
[312429214,1705871438412,-299.42600415,0.0002273,2]
[312429215,1705871438422,-209.0,0.00022731,2]
[312429216,1705871438433,-3410.34289118,0.00022732,2]
[312429217,1705871438443,-165.92298531,0.00022732,2]
[312429218,1705871438452,-448.88050216,0.00022732,2]
[312429219,1705871438462,-195.20904222,0.00022732,2]
[312429220,1705871438472,-800.22,0.00022733,2]
[312429221,1705871438482,-10000.0,0.0002274,2]
[312429222,1705871438491,-1851.78736333,0.00022748,2]
[312429223,1705871438502,-170.55472325,0.00022769,2]
[312429224,1705871438511,-436.31723575,0.00022769,2]
[312429225,1705871438521,-308.68990866,0.00022769,2]
[312429226,1705871438530,-598.05741815,0.00022769,2]
[312429227,1705871438541,-448.88050213,0.00022774,2]
[312429228,1705871438550,-448.88050213,0.00022816,2]
[312429229,1705871438560,-495.2481444,0.00022821,2]
[312429230,1705871438569,-371.29552064,0.00022829,2]
[312429232,1705871438579,-530.39533152,0.00022829,2]
[312429235,1705871438589,-172.29367536,0.00022829,2]
[312429237,1705871438599,-4477.84140557,0.0002283,2]
[312429239,1705871438609,-215.00753688,0.0002283,2]
[312429241,1705871438618,-203.37489632,0.0002283,2]
[312429243,1705871438628,-5007.65404292,0.0002283,2]
[312429245,1705871438637,-279.39893279,0.0002283,2]
[312429247,1705871438647,-310.26117175,0.0002283,2]
[312429249,1705871438656,-155.0,0.0002283,2]
[312429251,1705871438665,-262.52911397,0.0002283,2]
[312429253,1705871438674,-1198.3764781,0.0002283,2]
[312429255,1705871438684,-155.0,0.0002283,2]
[312429257,1705871438693,-155.0,0.0002283,2]
[312429259,1705871438702,-155.0,0.0002283,2]
[312429261,1705871438712,-155.40050005,0.0002283,2]
[312429263,1705871438721,-1290.7783835,0.0002283,2]
[312429265,1705871438731,-1254.3339191,0.0002283,2]
[312429267,1705871438740,-1807.4409427,0.0002283,2]
[312429269,1705871438749,-156.69657893,0.0002283,2]
[312429271,1705871438759,-173.92860391,0.0002283,2]
[312429273,1705871438768,-3059.49803054,0.0002283,2]
[312429275,1705871438778,-296.67924256,0.0002283,2]
[312429277,1705871438787,-155.28486431,0.0002283,2]
[312429279,1705871438796,-285.3546679,0.0002283,2]
[312429281,1705871438805,-155.40463079,0.0002283,2]
[312429283,1705871438815,-288.36702129,0.0002283,2]
[312429285,1705871438824,-304.95144327,0.0002283,2]
[312429287,1705871438833,-686.23856624,0.0002283,2]
[312429289,1705871438842,-333.74434296,0.0002283,2]
[312429291,1705871438852,-3326.03982063,0.0002283,2]
[312429293,1705871438861,-155.91202129,0.0002283,2]
[312429295,1705871438871,-300.0,0.0002283,2]
[312429297,1705871438880,-342.61663816,0.00022831,2]
[312429299,1705871438890,-156.34928234,0.00022831,2]
[312429301,1705871438900,-676.33503808,0.00022831,2]
[312429303,1705871438910,-796603.036596,0.00022831,2]
[312429305,1705871438920,-108913.9960838,0.00022832,2]
[312429307,1705871438930,-448.88050213,0.00022858,2]
[312429309,1705871438940,-152.4027003,0.00022898,2]
[312429311,1705871438949,-178.13967446,0.00022898,2]
[312429313,1705871438959,-12210.49816198,0.00022898,2]
[312429315,1705871438968,-3734.93743483,0.00022898,2]
[312429317,1705871438978,-464.48300442,0.00022898,2]
[312429320,1705871438988,-61824.7459,0.00022898,2]
[312429322,1705871438997,-150.86231463,0.000229,2]
[312429324,1705871439007,-448.88050213,0.000229,2]
[312429325,1705871439017,-166.63800017,0.000229,2]
[312429328,1705871439027,-166.63800002,0.000229,2]
[312429330,1705871439037,-166.63800002,0.000229,2]
[312429331,1705871439047,-166.63800002,0.000229,2]
[312429334,1705871439058,-157.33,0.00022968,2]
[312429336,1705871439069,-495.2481444,0.0002297,2]
[312429338,1705871439081,-701486.28153645,0.0002298,2]
[312429340,1705871439090,-495.2481444,0.0002299,2]
[312429342,1705871439100,-2780.01755274,0.00022998,2]
[312429344,1705871439110,-5264.33667276,0.00022998,2]
[312429346,1705871439120,-253.92586632,0.00022998,2]
[312429348,1705871439130,-1136.01929882,0.00022998,2]
[312429350,1705871439140,-404.12442134,0.00022998,2]
[312429352,1705871439150,-1041.66122871,0.00022998,2]
[312429355,1705871439160,-155.0,0.00022998,2]
[312429357,1705871439170,-421.02363331,0.00022998,2]
[312429359,1705871439180,-202.57156383,0.00022998,2]
[312429361,1705871439190,-486.28507678,0.00022998,2]
[312429363,1705871439199,-13979.94151192,0.00022998,2]
[312429365,1705871439209,-229.03990614,0.00022998,2]
[312429367,1705871439218,-207.78272895,0.00022999,2]
[312429369,1705871439228,-210.5865358,0.00022999,2]
[312429371,1705871439237,-155.0,0.00022999,2]
[312429373,1705871439247,-400.0,0.00022999,2]
[312429375,1705871439256,-150.0,0.00022999,2]
[312429377,1705871439266,-150.0,0.00022999,2]
[312429379,1705871439275,-150.0,0.00022999,2]
[312429381,1705871439285,-150.0,0.00022999,2]
[312429383,1705871439294,-150.0,0.00022999,2]
[312429385,1705871439304,-150.0,0.00022999,2]
[312429387,1705871439314,-150.0,0.00022999,2]
[312429389,1705871439323,-150.0,0.00022999,2]
[312429391,1705871439332,-3060320.02628608,0.00023,2]
[312429393,1705871439351,-277880.0554256,0.00023,2]
[312429396,1705871439364,-354584.75924408,0.00023,2]
[312429398,1705871439375,-1543.32675736,0.00023,2]
[312429400,1705871439387,-432.99651565,0.00023,2]
[312429402,1705871439399,-1123.23796047,0.00023,2]
[312429404,1705871439410,-319.6918195,0.00023,2]
[312429407,1705871439423,-2501.84913793,0.00023,2]
[312429411,1705871439451,-408.88720832,0.00023,2]
[312429413,1705871439463,-9794.0,0.00023,2]
[312429415,1705871439475,-2196.79710131,0.00023,2]
[312429422,1705871439532,-3687.29843367,0.00023,2]
[312429425,1705871439553,-345.30083637,0.00023,2]
[312429427,1705871439564,-2733.36764432,0.00023,2]
[312429563,1705871441175,-390957.25344076,0.00023,2]
[312429564,1705871441184,-912816.11803425,0.00023,2]
[312429565,1705871441194,-199.61009961,0.00023288,2]
[312429566,1705871441204,-294.22553859,0.00023288,2]
[312429567,1705871441213,-380.06150517,0.00023288,2]
[312429568,1705871441223,-271.03,0.00023712,2]
[312429569,1705871441232,-240.0,0.00023752,2]
[312429570,1705871441242,-150.8623145,0.00023772,2]
[312429571,1705871441251,-201.16205573,0.00024,2]
[312429572,1705871441260,-5000.0,0.00024,2]
[312429573,1705871441270,-171.69,0.00024297,2]
[312429574,1705871441279,-800.22,0.00024377,2]
[312429575,1705871441288,-3410.34289108,0.00024542,2]
[312429576,1705871441297,-250.0,0.00024658,2]
[312429577,1705871441306,-150.8623145,0.00024811,2]
[312429578,1705871441316,-760.0,0.0002485,2]
[312429579,1705871441325,-157.33,0.00024943,2]
[312429580,1705871441335,-350.0,0.00025,3]
[312429581,1705871441348,-1249.5542374,0.00025,2]
[312429582,1705871441357,-934.10101204,0.00025,2]
[312429583,1705871441367,-1584.83662852,0.00025,2]
[312429584,1705871441376,-303.60833749,0.00025,2]
[312429585,1705871441387,-167.40543921,0.00025,2]
[312429586,1705871441396,-202.12254127,0.00025,2]
[312429587,1705871441406,-1000.0,0.00025,2]
[312429588,1705871441416,-508.90507024,0.00025,2]
[312429589,1705871441427,-155.0,0.00025,2]
[312429590,1705871441437,-1249.5542374,0.00025,2]
[312429591,1705871441447,-439.64576117,0.00025221,2]
[312429592,1705871441457,-150.8623145,0.00025851,2]
[312429593,1705871441466,-271.03,0.00025976,2]
[312429594,1705871441475,-800.22,0.00026021,2]
[312429595,1705871441485,-3410.34289108,0.00026351,2]
[312429596,1705871441494,-240.0,0.00026391,2]
[312429597,1705871441503,-167.0,0.00026528,2]
[312429598,1705871441513,-8111.15,0.00026575,2]
[312429599,1705871441522,-2335.48,0.00026575,2]
[312429600,1705871441531,-150.8623145,0.00026891,2]
[312429601,1705871441541,-3181.0,0.000269,2]
[312429602,1705871441550,-400.0,0.00027,3]
[312429603,1705871441559,-416.36185011,0.00027,2]
[312429604,1705871441568,-155.0,0.00027,2]
[312429606,1705871441578,-155.0,0.00027397,2]
[312429608,1705871441587,-6918.42574564,0.000274,2]
[312429610,1705871441597,-760.0,0.00027611,2]
[312429612,1705871441606,-800.22,0.00027665,2]
[312429614,1705871441616,-157.76,0.0002782,2]
[312429616,1705871441626,-150.8623145,0.0002793,2]
[312429618,1705871441635,-439.64576117,0.00027942,3]
[312429620,1705871441646,-688.92857397,0.00028,2]
[312429623,1705871441655,-200.0,0.00028,2]
[312429625,1705871441665,-3410.34289108,0.00028161,2]
[312429627,1705871441674,-271.03,0.00028239,2]
[312429629,1705871441683,-171.69,0.00028307,2]
[312429631,1705871441692,-310.0,0.00028767,2]
[312429633,1705871441701,-150.8623145,0.0002897,2]
[312429635,1705871441710,-240.0,0.0002903,2]
[312429637,1705871441719,-800.22,0.00029308,2]
[312429639,1705871441729,-5800.0,0.00029735,2]
[312429640,1705871441739,-5800.0,0.00029744,2]
[312429642,1705871441748,-731.25712485,0.000298,2]
[312429644,1705871441757,-209.86254159,0.000298,2]
[312429647,1705871441767,-3410.34289108,0.00029971,2]
[312429649,1705871441776,-1000.0,0.00029999,2]
[312429651,1705871441786,-3875.662611,0.0003,4]
[312429692,1705871442140,-764.11347582,0.0003,4]
[312429695,1705871442174,-155.0,0.0003,2]
[312429698,1705871442184,-2359.04794661,0.0003,2]
[312429700,1705871442194,-1000.0,0.0003,3]
[312429702,1705871442204,-1573.00938354,0.0003,4]
[312429704,1705871442214,-9639.56910486,0.0003,2]
[312429706,1705871442223,-691.92895757,0.0003,2]
[312429708,1705871442232,-582.6484227,0.0003,2]
[312429710,1705871442241,-150.8623145,0.0003001,2]
[312429712,1705871442251,-153.84,0.00030137,2]
[312429714,1705871442261,-156.25,0.00030137,2]
[312429716,1705871442270,-760.0,0.00030372,2]
[312429718,1705871442279,-12210.49816197,0.00030399,2]
[312429720,1705871442289,-3734.93743481,0.00030399,2]
[312429722,1705871442298,-464.48300441,0.00030399,2]
[312429723,1705871442307,-157.76,0.00030437,2]
[312429725,1705871442317,-271.03,0.00030503,2]
[312429727,1705871442326,-439.64576117,0.00030662,5]
[312429729,1705871442338,-167.0,0.00030907,2]
[312429731,1705871442347,-1000.0,0.00031,3]
[312429733,1705871442357,-150.8623145,0.00031049,2]
[312429736,1705871442368,-2547.3192983,0.000315,2]
[312429738,1705871442379,-282.72,0.00031507,2]
[312429740,1705871442388,-184.18,0.00031644,2]
[312429742,1705871442397,-729.0,0.00031645,5]
[312429744,1705871442407,-240.0,0.00031669,2]
[312429746,1705871442418,-204.0,0.00031709,2]
[312429748,1705871442427,-3410.34289108,0.00031781,3]
[312429750,1705871442437,-150.0,0.00031799,2]
[312429752,1705871442446,-150.0,0.00031799,2]
[312429754,1705871442456,-354473.827336,0.000318,3]
[312429756,1705871442466,-1000.0,0.00032,3]
[312429758,1705871442476,-156.25,0.00032021,2]
[312429760,1705871442485,-150.8623145,0.00032089,2]
[312429761,1705871442495,-800.0,0.00032356,2]
[312429762,1705871442504,-186.0,0.00032372,2]
[312429763,1705871442513,-657.92308016,0.000325,2]
[312429764,1705871442523,-15484.00238872,0.000325,2]
[312429765,1705871442532,-271.03,0.00032767,2]
[312429766,1705871442542,-199.1114,0.00032852,2]
[312429767,1705871442551,-1572.6473,0.00032852,2]
[312429768,1705871442561,-945.1059,0.00032852,2]
[312429769,1705871442570,-162.88350222,0.00032876,7]
[312429770,1705871442579,-411.69,0.00032877,15]
[312429771,1705871442589,-1000.0,0.00033,3]
[312429772,1705871442598,-157.76,0.00033054,2]
[312429773,1705871442607,-150.8623145,0.00033129,2]
[312429774,1705871442617,-760.0,0.00033133,2]
[312429775,1705871442626,-439.64576117,0.00033382,6]
[312429776,1705871442635,-3410.34289108,0.0003359,5]
[312429777,1705871442645,-156.25,0.00033904,2]
[312429778,1705871442654,-500.0,0.00034,2]
[312429779,1705871442663,-1000.0,0.00034,4]
[312429780,1705871442673,-1000.0,0.00034,4]
[312429781,1705871442683,-5000.0,0.0003409,2]
[312429782,1705871442692,-150.8623145,0.00034168,2]
[312429783,1705871442702,-4425.00445908,0.000345,2]
[312429784,1705871442711,-556.812905,0.0003452,2]
[312429785,1705871442720,-282.72,0.00034703,2]
[312429786,1705871442730,-835.219358,0.00034794,2]
[312429787,1705871442739,-1113.625811,0.00034931,2]
[312429788,1705871442749,-72421.883112,0.00034998,2]
[312429789,1705871442758,-18139.19023063,0.00035,10]
[312429790,1705871442768,-1662.0,0.00035,5]
[312429791,1705871442777,-1000.0,0.00035,5]
[312429792,1705871442787,-1000.0,0.00035,5]
[312429793,1705871442796,-1000.0,0.00035,5]
[312429794,1705871442806,-271.03,0.00035031,2]
[312429795,1705871442815,-1392.032264,0.00035068,2]